[Event "Titled Tuesday Blitz February 28 Late 2023"]
[White "Redzisz, Michal"]
[Black "Mendez Machado, Andre"]
[WhiteFideId "21816107"]
[BlackFideId "6603793"]
[WhiteElo "2175"]
[BlackElo "1989"]
[Result "1/2-1/2"]
[Round "03"]
[TimeControl "180+2"]
[Date "2023.02.28"]
[WhiteClock "0:00:21"]
[BlackClock "0:00:06"]

1. e4 {[%clk 0:03:00]}  e5 {[%clk 0:02:59]} 2. Nf3 {[%clk 0:03:00]}  Nc6 {[%clk 0:02:59]} 3. Bc4 {[%clk 0:03:01]}  Bc5 {[%clk 0:02:59]} 4. c3 {[%clk 0:03:01]}  Nf6 {[%clk 0:02:59]} 5. d4 {[%clk 0:03:01]}  exd4 {[%clk 0:03:00]} 6. cxd4 {[%clk 0:03:02]}  Bb4+ {[%clk 0:03:00]} 7. Nc3 {[%clk 0:03:03]}  Nxe4 {[%clk 0:02:59]} 8. O-O {[%clk 0:03:03]}  Bxc3 {[%clk 0:03:00]} 9. d5 {[%clk 0:03:04]}  Bf6 {[%clk 0:02:30]} 10. Re1 {[%clk 0:03:03]}  Ne7 {[%clk 0:02:29]} 11. Rxe4 {[%clk 0:03:04]}  d6 {[%clk 0:02:28]} 12. g4 {[%clk 0:03:04]}  h6 {[%clk 0:02:16]} 13. h4 {[%clk 0:03:04]}  O-O {[%clk 0:01:45]} 14. g5 {[%clk 0:03:04]}  hxg5 {[%clk 0:01:45]} 15. hxg5 {[%clk 0:03:04]}  Be5 {[%clk 0:01:41]} 16. Nxe5 {[%clk 0:03:04]}  dxe5 {[%clk 0:01:42]} 17. Rxe5 {[%clk 0:03:04]}  Ng6 {[%clk 0:01:39]} 18. Re1 {[%clk 0:02:51]}  Qd6 {[%clk 0:01:25]} 19. Qh5 {[%clk 0:02:37]}  Bf5 {[%clk 0:01:07]} 20. Kg2 {[%clk 0:02:17]}  Nf4+ {[%clk 0:00:59]} 21. Bxf4 {[%clk 0:02:16]}  Qxf4 {[%clk 0:01:00]} 22. Be2 {[%clk 0:01:29]}  Bg6 {[%clk 0:00:55]} 23. Qg4 {[%clk 0:01:22]}  Be4+ {[%clk 0:00:46]} 24. Kg1 {[%clk 0:01:16]}  Qxg4+ {[%clk 0:00:42]} 25. Bxg4 {[%clk 0:01:17]}  Bxd5 {[%clk 0:00:43]} 26. Re7 {[%clk 0:01:18]}  c5 {[%clk 0:00:27]} 27. Rd1 {[%clk 0:01:17]}  Bc6 {[%clk 0:00:25]} 28. g6 {[%clk 0:01:15]}  fxg6 {[%clk 0:00:20]} 29. Be6+ {[%clk 0:01:15]}  Kh7 {[%clk 0:00:20]} 30. Rd3 {[%clk 0:01:15]}  Rf3 {[%clk 0:00:16]} 31. Rd6 {[%clk 0:00:33]}  Raf8 {[%clk 0:00:15]} 32. Bd5 {[%clk 0:00:23]}  Rxf2 {[%clk 0:00:13]} 33. Bxc6 {[%clk 0:00:23]}  bxc6 {[%clk 0:00:12]} 34. Rdd7 {[%clk 0:00:23]}  Rf1+ {[%clk 0:00:13]} 35. Kg2 {[%clk 0:00:23]}  R1f2+ {[%clk 0:00:13]} 36. Kg3 {[%clk 0:00:24]}  R8f3+ {[%clk 0:00:12]} 37. Kg4 {[%clk 0:00:24]}  Rf4+ {[%clk 0:00:11]} 38. Kg3 {[%clk 0:00:25]}  Kh6 {[%clk 0:00:10]} 39. Rxg7 {[%clk 0:00:24]}  Kg5 {[%clk 0:00:10]} 40. Rd3 {[%clk 0:00:22]}  Rxb2 {[%clk 0:00:08]} 41. Rc7 {[%clk 0:00:20]}  Rf6 {[%clk 0:00:07]} 42. Rc3 {[%clk 0:00:20]}  Rb5 {[%clk 0:00:07]} 43. a4 {[%clk 0:00:20]}  Ra5 {[%clk 0:00:07]} 44. Rc4 {[%clk 0:00:20]}  Kf5 {[%clk 0:00:06]} 45. Rf4+ {[%clk 0:00:20]}  Kg5 {[%clk 0:00:06]} 46. Rg4+ {[%clk 0:00:19]}  Kh6 {[%clk 0:00:05]} 47. Rh4+ {[%clk 0:00:18]}  Kg5 {[%clk 0:00:05]} 48. Re7 {[%clk 0:00:19]}  Rf5 {[%clk 0:00:04]} 49. Re6 {[%clk 0:00:18]}  c4 {[%clk 0:00:03]} 50. Rg4+ {[%clk 0:00:18]}  Kh5 {[%clk 0:00:03]} 51. Rgxg6 {[%clk 0:00:19]}  Rg5+ {[%clk 0:00:04]} 52. Rxg5+ {[%clk 0:00:18]}  Rxg5+ {[%clk 0:00:05]} 53. Kf4 {[%clk 0:00:19]}  Ra5 {[%clk 0:00:04]} 54. Rxc6 {[%clk 0:00:17]}  Rxa4 {[%clk 0:00:04]} 55. Kf5 {[%clk 0:00:17]}  Ra5+ {[%clk 0:00:04]} 56. Ke4 {[%clk 0:00:17]}  Ra4 {[%clk 0:00:04]} 57. Kd4 {[%clk 0:00:17]}  Kg4 {[%clk 0:00:03]} 58. Rxc4 {[%clk 0:00:17]}  Rxc4+ {[%clk 0:00:04]} 59. Kxc4 {[%clk 0:00:18]}  Kf5 {[%clk 0:00:05]} 60. Kb5 {[%clk 0:00:19]}  Ke6 {[%clk 0:00:05]} 61. Ka6 {[%clk 0:00:20]}  Kd7 {[%clk 0:00:06]} 62. Kxa7 {[%clk 0:00:21]} 1/2-1/2


[Site "https://www.chess.com"]

[Event "Titled Tuesday Blitz February 28 Late 2023"]
[White "Chan, Kim Yew"]
[Black "Lopez Perdomo, Juan David"]
[WhiteFideId "5717981"]
[BlackFideId "4405137"]
[WhiteElo "2206"]
[BlackElo "1965"]
[Result "1-0"]
[Round "03"]
[TimeControl "180+2"]
[Date "2023.02.28"]
[WhiteClock "0:02:19"]
[BlackClock "0:02:04"]

1. Nf3 {[%clk 0:02:53]}  e6 {[%clk 0:02:59]} 2. a3 {[%clk 0:02:51]}  d5 {[%clk 0:02:59]} 3. b4 {[%clk 0:02:51]}  a5 {[%clk 0:02:58]} 4. Bb2 {[%clk 0:02:50]}  axb4 {[%clk 0:02:58]} 5. axb4 {[%clk 0:02:51]}  Rxa1 {[%clk 0:02:58]} 6. Bxa1 {[%clk 0:02:52]}  Nf6 {[%clk 0:02:52]} 7. b5 {[%clk 0:02:47]}  c5 {[%clk 0:02:36]} 8. bxc6 {[%clk 0:02:37]}  bxc6 {[%clk 0:02:33]} 9. e3 {[%clk 0:02:34]}  Ba6 {[%clk 0:02:16]} 10. c4 {[%clk 0:02:24]}  Ne4 {[%clk 0:02:07]} 11. Nc3 {[%clk 0:02:19]}  Nxc3 {[%clk 0:02:04]} 12. Bxc3 {[%clk 0:02:20]}  Qa5 {[%clk 0:02:04]} 13. Bxa5 {[%clk 0:02:19]} 1-0


[Site "https://www.chess.com"]

[Event "Titled Tuesday Blitz February 28 Late 2023"]
[White "Li, Hui"]
[Black "Cueto, Jonny"]
[WhiteFideId "15400310"]
[BlackFideId "3300145"]
[WhiteElo "1967"]
[BlackElo "2212"]
[Result "0-1"]
[Round "03"]
[TimeControl "180+2"]
[Date "2023.02.28"]
[WhiteClock "0:00:05"]
[BlackClock "0:00:13"]

1. e4 {[%clk 0:02:28]}  e6 {[%clk 0:02:58]} 2. d4 {[%clk 0:02:24]}  d5 {[%clk 0:02:59]} 3. Nd2 {[%clk 0:02:22]}  Nc6 {[%clk 0:02:58]} 4. Ngf3 {[%clk 0:02:21]}  Nf6 {[%clk 0:02:57]} 5. e5 {[%clk 0:02:20]}  Nd7 {[%clk 0:02:58]} 6. c3 {[%clk 0:02:21]}  f6 {[%clk 0:02:57]} 7. Bb5 {[%clk 0:02:21]}  fxe5 {[%clk 0:02:56]} 8. dxe5 {[%clk 0:02:22]}  Bc5 {[%clk 0:02:55]} 9. Nb3 {[%clk 0:02:20]}  Bb6 {[%clk 0:02:54]} 10. Bg5 {[%clk 0:02:05]}  Ne7 {[%clk 0:02:48]} 11. Nbd4 {[%clk 0:01:54]}  O-O {[%clk 0:01:21]} 12. Nxe6 {[%clk 0:01:50]}  Qe8 {[%clk 0:01:21]} 13. Nxf8 {[%clk 0:01:49]}  Qxf8 {[%clk 0:01:22]} 14. Bxe7 {[%clk 0:01:40]}  Qxe7 {[%clk 0:01:21]} 15. Qxd5+ {[%clk 0:01:41]}  Kh8 {[%clk 0:01:21]} 16. Bxd7 {[%clk 0:01:36]}  Bxd7 {[%clk 0:01:20]} 17. O-O-O {[%clk 0:01:25]}  Be6 {[%clk 0:01:18]} 18. Qxb7 {[%clk 0:01:18]}  Rf8 {[%clk 0:01:12]} 19. Kb1 {[%clk 0:01:09]}  Bc4 {[%clk 0:00:55]} 20. Qc6 {[%clk 0:01:04]}  Be6 {[%clk 0:00:45]} 21. h4 {[%clk 0:01:00]}  Bf5+ {[%clk 0:00:41]} 22. Ka1 {[%clk 0:00:50]}  a5 {[%clk 0:00:41]} 23. Nd4 {[%clk 0:00:43]}  Bd7 {[%clk 0:00:39]} 24. Qe4 {[%clk 0:00:35]}  a4 {[%clk 0:00:36]} 25. a3 {[%clk 0:00:27]}  Qc5 {[%clk 0:00:33]} 26. e6 {[%clk 0:00:23]}  Bb5 {[%clk 0:00:28]} 27. Nxb5 {[%clk 0:00:20]}  Qxb5 {[%clk 0:00:26]} 28. Qb4 {[%clk 0:00:18]}  Qf5 {[%clk 0:00:22]} 29. e7 {[%clk 0:00:16]}  Re8 {[%clk 0:00:20]} 30. Rd8 {[%clk 0:00:16]}  Qf7 {[%clk 0:00:17]} 31. Qa5 {[%clk 0:00:16]}  Bxa5 {[%clk 0:00:16]} 32. Re1 {[%clk 0:00:06]}  c5 {[%clk 0:00:14]} 33. f4 {[%clk 0:00:05]}  Bxd8 {[%clk 0:00:12]} 34. exd8=Q {[%clk 0:00:05]}  Rxd8 {[%clk 0:00:13]} 0-1


[Site "https://www.chess.com"]

[Event "Titled Tuesday Blitz February 28 Late 2023"]
[White "Szyszylo, Rafal"]
[Black "Fernandez Hernandez, Gerardo"]
[WhiteFideId "1109626"]
[BlackFideId "2207400"]
[WhiteElo "1951"]
[BlackElo "2202"]
[Result "1-0"]
[Round "03"]
[TimeControl "180+2"]
[Date "2023.02.28"]
[WhiteClock "0:00:10"]
[BlackClock "0:00:01"]

1. e4 {[%clk 0:02:59]}  e6 {[%clk 0:02:59]} 2. d4 {[%clk 0:02:58]}  d5 {[%clk 0:03:00]} 3. e5 {[%clk 0:02:59]}  c5 {[%clk 0:02:59]} 4. c3 {[%clk 0:02:59]}  Nc6 {[%clk 0:03:00]} 5. Nf3 {[%clk 0:03:00]}  Qb6 {[%clk 0:03:00]} 6. Be2 {[%clk 0:03:00]}  f6 {[%clk 0:02:59]} 7. O-O {[%clk 0:02:57]}  fxe5 {[%clk 0:02:56]} 8. Nxe5 {[%clk 0:02:49]}  Nf6 {[%clk 0:02:55]} 9. Nxc6 {[%clk 0:02:34]}  bxc6 {[%clk 0:02:47]} 10. Re1 {[%clk 0:01:59]}  Bd6 {[%clk 0:02:26]} 11. Bh5+ {[%clk 0:01:53]}  Nxh5 {[%clk 0:02:04]} 12. Qxh5+ {[%clk 0:01:52]}  g6 {[%clk 0:02:04]} 13. Qe2 {[%clk 0:01:30]}  O-O {[%clk 0:01:38]} 14. Be3 {[%clk 0:01:21]}  Bd7 {[%clk 0:01:18]} 15. dxc5 {[%clk 0:01:03]}  Bxc5 {[%clk 0:01:19]} 16. Bxc5 {[%clk 0:01:03]}  Qxc5 {[%clk 0:01:19]} 17. Nd2 {[%clk 0:01:04]}  Rae8 {[%clk 0:00:46]} 18. Nf3 {[%clk 0:01:02]}  Rf5 {[%clk 0:00:31]} 19. Ne5 {[%clk 0:00:55]}  Bc8 {[%clk 0:00:22]} 20. Qe3 {[%clk 0:00:32]}  Qd6 {[%clk 0:00:15]} 21. f4 {[%clk 0:00:30]}  Ref8 {[%clk 0:00:14]} 22. Rf1 {[%clk 0:00:25]}  c5 {[%clk 0:00:10]} 23. Rad1 {[%clk 0:00:20]}  Ba6 {[%clk 0:00:09]} 24. Rf3 {[%clk 0:00:19]}  Bb7 {[%clk 0:00:08]} 25. Rf2 {[%clk 0:00:16]}  Qe7 {[%clk 0:00:06]} 26. g3 {[%clk 0:00:15]}  Qd6 {[%clk 0:00:05]} 27. Nc4 {[%clk 0:00:14]}  Qd7 {[%clk 0:00:03]} 28. Ne5 {[%clk 0:00:14]}  Qe7 {[%clk 0:00:03]} 29. Re2 {[%clk 0:00:09]}  R5f6 {[%clk 0:00:02]} 30. Ng4 {[%clk 0:00:09]}  Rf5 {[%clk 0:00:01]} 31. Nh6+ {[%clk 0:00:09]}  Kg7 {[%clk 0:00:01]} 32. Nxf5+ {[%clk 0:00:10]} 1-0


[Site "https://www.chess.com"]

[Event "Titled Tuesday Blitz February 28 Late 2023"]
[White "Gamage, Wanshini Vidusama"]
[Black "Hoffmann, Asa"]
[WhiteFideId "9953752"]
[BlackFideId "2001470"]
[WhiteElo "2197"]
[BlackElo "2117"]
[Result "0-1"]
[Round "03"]
[TimeControl "180+2"]
[Date "2023.02.28"]
[WhiteClock "0:00:32"]
[BlackClock "0:00:54"]

1. e4 {[%clk 0:03:00]}  d6 {[%clk 0:02:56]} 2. d4 {[%clk 0:02:59]}  Nf6 {[%clk 0:02:55]} 3. Nc3 {[%clk 0:02:59]}  c6 {[%clk 0:02:55]} 4. Nf3 {[%clk 0:02:59]}  Bg4 {[%clk 0:02:54]} 5. Be2 {[%clk 0:02:58]}  e6 {[%clk 0:02:54]} 6. h3 {[%clk 0:02:58]}  Bh5 {[%clk 0:02:54]} 7. O-O {[%clk 0:02:58]}  d5 {[%clk 0:02:53]} 8. e5 {[%clk 0:02:56]}  Nfd7 {[%clk 0:02:53]} 9. Be3 {[%clk 0:02:55]}  c5 {[%clk 0:02:53]} 10. a4 {[%clk 0:02:42]}  Nc6 {[%clk 0:02:52]} 11. dxc5 {[%clk 0:02:36]}  Bxc5 {[%clk 0:02:51]} 12. Bxc5 {[%clk 0:02:35]}  Nxc5 {[%clk 0:02:50]} 13. Bb5 {[%clk 0:02:26]}  O-O {[%clk 0:02:47]} 14. Bxc6 {[%clk 0:02:24]}  bxc6 {[%clk 0:02:46]} 15. Re1 {[%clk 0:02:14]}  Rb8 {[%clk 0:02:45]} 16. b3 {[%clk 0:02:14]}  Rb4 {[%clk 0:02:31]} 17. Na2 {[%clk 0:01:59]}  Re4 {[%clk 0:02:22]} 18. Rxe4 {[%clk 0:01:57]}  dxe4 {[%clk 0:02:21]} 19. Qxd8 {[%clk 0:01:56]}  Rxd8 {[%clk 0:02:21]} 20. Ng5 {[%clk 0:01:48]}  h6 {[%clk 0:02:14]} 21. b4 {[%clk 0:01:48]}  hxg5 {[%clk 0:02:09]} 22. bxc5 {[%clk 0:01:48]}  Rd5 {[%clk 0:02:07]} 23. Nc3 {[%clk 0:01:42]}  Rxe5 {[%clk 0:02:05]} 24. Re1 {[%clk 0:01:41]}  Bg6 {[%clk 0:02:01]} 25. f3 {[%clk 0:01:38]}  Rxc5 {[%clk 0:02:01]} 26. Nxe4 {[%clk 0:01:38]}  Bxe4 {[%clk 0:02:00]} 27. Rxe4 {[%clk 0:01:39]}  Rxc2 {[%clk 0:02:00]} 28. Re5 {[%clk 0:01:37]}  c5 {[%clk 0:01:46]} 29. Rxg5 {[%clk 0:01:36]}  f6 {[%clk 0:01:45]} 30. Rg4 {[%clk 0:01:36]}  e5 {[%clk 0:01:40]} 31. Kf1 {[%clk 0:01:35]}  Kf7 {[%clk 0:01:39]} 32. Ke1 {[%clk 0:01:35]}  g5 {[%clk 0:01:39]} 33. Kd1 {[%clk 0:01:36]}  Ra2 {[%clk 0:01:38]} 34. Rc4 {[%clk 0:01:34]}  Ke6 {[%clk 0:01:37]} 35. Rxc5 {[%clk 0:01:30]}  Rxg2 {[%clk 0:01:36]} 36. Ra5 {[%clk 0:01:30]}  Rg3 {[%clk 0:01:30]} 37. Ke2 {[%clk 0:01:27]}  Rxh3 {[%clk 0:01:30]} 38. Rxa7 {[%clk 0:01:27]}  Rh2+ {[%clk 0:01:30]} 39. Ke3 {[%clk 0:01:23]}  Kf5 {[%clk 0:01:28]} 40. a5 {[%clk 0:01:22]}  Ra2 {[%clk 0:01:27]} 41. a6 {[%clk 0:01:21]}  Ra3+ {[%clk 0:01:27]} 42. Kf2 {[%clk 0:01:22]}  Kf4 {[%clk 0:01:27]} 43. Ra8 {[%clk 0:01:20]}  f5 {[%clk 0:01:27]} 44. a7 {[%clk 0:01:20]}  g4 {[%clk 0:01:24]} 45. fxg4 {[%clk 0:01:20]}  Ra2+ {[%clk 0:01:22]} 46. Kf1 {[%clk 0:01:14]}  Kf3 {[%clk 0:01:19]} 47. Ke1 {[%clk 0:01:14]}  f4 {[%clk 0:01:18]} 48. Re8 {[%clk 0:01:09]}  Rxa7 {[%clk 0:01:11]} 49. Rxe5 {[%clk 0:01:09]}  Ra1+ {[%clk 0:01:09]} 50. Kd2 {[%clk 0:01:08]}  Kxg4 {[%clk 0:01:08]} 51. Ke2 {[%clk 0:00:59]}  Ra2+ {[%clk 0:01:06]} 52. Kf1 {[%clk 0:00:57]}  Kg3 {[%clk 0:01:06]} 53. Re8 {[%clk 0:00:51]}  Kf3 {[%clk 0:01:05]} 54. Kg1 {[%clk 0:00:50]}  Ra1+ {[%clk 0:01:05]} 55. Kh2 {[%clk 0:00:51]}  Kf2 {[%clk 0:01:05]} 56. Rb8 {[%clk 0:00:48]}  Ra3 {[%clk 0:00:59]} 57. Rb2+ {[%clk 0:00:46]}  Kf3 {[%clk 0:00:58]} 58. Kg1 {[%clk 0:00:42]}  Kg3 {[%clk 0:00:58]} 59. Rb1 {[%clk 0:00:34]}  f3 {[%clk 0:00:58]} 60. Kf1 {[%clk 0:00:34]}  Ra2 {[%clk 0:00:56]} 61. Re1 {[%clk 0:00:31]}  Rf2+ {[%clk 0:00:54]} 62. Kg1 {[%clk 0:00:32]}  Rg2+ {[%clk 0:00:54]} 63. Kh1 {[%clk 0:00:32]}  Rh2+ {[%clk 0:00:54]} 64. Kg1 {[%clk 0:00:32]}  f2+ {[%clk 0:00:54]} 0-1


[Site "https://www.chess.com"]

[Event "Titled Tuesday Blitz February 28 Late 2023"]
[White "Rangel, Daniel"]
[Black "Chemin, Justo Reinaldo"]
[WhiteFideId "2124475"]
[BlackFideId "2101580"]
[WhiteElo "2256"]
[BlackElo "1940"]
[Result "0-1"]
[Round "03"]
[TimeControl "180+2"]
[Date "2023.02.28"]
[WhiteClock "0:00:21"]
[BlackClock "0:00:20"]

1. c4 {[%clk 0:03:00]}  e6 {[%clk 0:02:59]} 2. g3 {[%clk 0:02:59]}  d5 {[%clk 0:02:59]} 3. Bg2 {[%clk 0:02:59]}  Nf6 {[%clk 0:02:59]} 4. Nf3 {[%clk 0:02:59]}  c6 {[%clk 0:02:59]} 5. O-O {[%clk 0:02:59]}  dxc4 {[%clk 0:02:59]} 6. a4 {[%clk 0:02:58]}  b5 {[%clk 0:02:44]} 7. b3 {[%clk 0:02:54]}  cxb3 {[%clk 0:02:42]} 8. Qxb3 {[%clk 0:02:55]}  a6 {[%clk 0:02:40]} 9. d4 {[%clk 0:02:47]}  Bb7 {[%clk 0:02:34]} 10. Nbd2 {[%clk 0:02:30]}  Nbd7 {[%clk 0:02:31]} 11. Nc4 {[%clk 0:02:24]}  bxc4 {[%clk 0:02:14]} 12. Qxb7 {[%clk 0:02:21]}  Qc8 {[%clk 0:02:14]} 13. Qb2 {[%clk 0:02:16]}  Rb8 {[%clk 0:02:09]} 14. Qc2 {[%clk 0:02:14]}  c5 {[%clk 0:02:10]} 15. Qxc4 {[%clk 0:02:05]}  cxd4 {[%clk 0:02:03]} 16. Qxd4 {[%clk 0:01:58]}  Bc5 {[%clk 0:02:00]} 17. Qh4 {[%clk 0:01:58]}  O-O {[%clk 0:01:58]} 18. Bf4 {[%clk 0:01:55]}  Rb4 {[%clk 0:01:52]} 19. Rfb1 {[%clk 0:01:21]}  a5 {[%clk 0:01:22]} 20. Rxb4 {[%clk 0:01:14]}  Bxb4 {[%clk 0:01:12]} 21. Rc1 {[%clk 0:01:08]}  Qa6 {[%clk 0:01:09]} 22. Bf1 {[%clk 0:01:03]}  Rc8 {[%clk 0:01:03]} 23. Rd1 {[%clk 0:00:53]}  Qc6 {[%clk 0:00:57]} 24. Ne5 {[%clk 0:00:44]}  Qxa4 {[%clk 0:00:52]} 25. Nxd7 {[%clk 0:00:40]}  Qxd1 {[%clk 0:00:41]} 26. Nxf6+ {[%clk 0:00:39]}  gxf6 {[%clk 0:00:41]} 27. Qxf6 {[%clk 0:00:39]}  Qd8 {[%clk 0:00:30]} 28. Qe5 {[%clk 0:00:30]}  Bf8 {[%clk 0:00:25]} 29. Bg5 {[%clk 0:00:21]}  Qd5 {[%clk 0:00:20]} 0-1


[Site "https://www.chess.com"]

[Event "Titled Tuesday Blitz February 28 Late 2023"]
[White "Carrasco Miranda, Andres"]
[Black "Levine, David"]
[WhiteFideId "3405990"]
[BlackFideId "2011611"]
[WhiteElo "2183"]
[BlackElo "2120"]
[Result "1-0"]
[Round "03"]
[TimeControl "180+2"]
[Date "2023.02.28"]
[WhiteClock "0:00:08"]
[BlackClock "0:00:01"]

1. d4 {[%clk 0:03:00]}  d5 {[%clk 0:02:59]} 2. c4 {[%clk 0:03:00]}  dxc4 {[%clk 0:02:59]} 3. e4 {[%clk 0:03:00]}  Nf6 {[%clk 0:02:58]} 4. e5 {[%clk 0:03:00]}  Nd5 {[%clk 0:02:58]} 5. Bxc4 {[%clk 0:03:01]}  Nb6 {[%clk 0:02:57]} 6. Bb3 {[%clk 0:03:01]}  Nc6 {[%clk 0:02:56]} 7. Ne2 {[%clk 0:03:00]}  Bf5 {[%clk 0:02:55]} 8. Nbc3 {[%clk 0:03:00]}  e6 {[%clk 0:02:55]} 9. Be3 {[%clk 0:03:00]}  Be7 {[%clk 0:02:53]} 10. O-O {[%clk 0:02:59]}  O-O {[%clk 0:02:53]} 11. Qd2 {[%clk 0:02:52]}  Na5 {[%clk 0:02:49]} 12. Ng3 {[%clk 0:02:48]}  Bg6 {[%clk 0:02:34]} 13. Rfd1 {[%clk 0:02:39]}  Nbc4 {[%clk 0:02:31]} 14. Qe2 {[%clk 0:02:38]}  Nxe3 {[%clk 0:02:27]} 15. fxe3 {[%clk 0:02:39]}  Nxb3 {[%clk 0:02:25]} 16. axb3 {[%clk 0:02:40]}  c6 {[%clk 0:02:18]} 17. Nge4 {[%clk 0:02:35]}  Qb6 {[%clk 0:02:14]} 18. Qc4 {[%clk 0:02:32]}  Rfd8 {[%clk 0:01:51]} 19. h3 {[%clk 0:02:07]}  a6 {[%clk 0:01:39]} 20. Nc5 {[%clk 0:01:59]}  Bg5 {[%clk 0:01:22]} 21. Kf2 {[%clk 0:01:39]}  h5 {[%clk 0:01:22]} 22. N3e4 {[%clk 0:01:32]}  Be7 {[%clk 0:01:10]} 23. Kg1 {[%clk 0:01:29]}  h4 {[%clk 0:01:09]} 24. Kh1 {[%clk 0:01:28]}  Rab8 {[%clk 0:01:00]} 25. Rf1 {[%clk 0:01:18]}  Qc7 {[%clk 0:00:50]} 26. Rf4 {[%clk 0:01:07]}  Rf8 {[%clk 0:00:42]} 27. Raf1 {[%clk 0:01:03]}  Rbd8 {[%clk 0:00:41]} 28. Rg4 {[%clk 0:00:40]}  Bf5 {[%clk 0:00:37]} 29. Rgf4 {[%clk 0:00:14]}  a5 {[%clk 0:00:36]} 30. Rxf5 {[%clk 0:00:13]}  exf5 {[%clk 0:00:36]} 31. Rxf5 {[%clk 0:00:14]}  b5 {[%clk 0:00:34]} 32. Qe2 {[%clk 0:00:14]}  Bxc5 {[%clk 0:00:32]} 33. Nxc5 {[%clk 0:00:15]}  Qe7 {[%clk 0:00:28]} 34. Qg4 {[%clk 0:00:14]}  Rd5 {[%clk 0:00:17]} 35. Ne4 {[%clk 0:00:13]}  g6 {[%clk 0:00:10]} 36. Rf6 {[%clk 0:00:13]}  Kg7 {[%clk 0:00:05]} 37. Rxc6 {[%clk 0:00:12]}  Qd7 {[%clk 0:00:01]} 38. Qxd7 {[%clk 0:00:09]}  Rxd7 {[%clk 0:00:01]} 39. Rb6 {[%clk 0:00:08]} 1-0


[Site "https://www.chess.com"]

[Event "Titled Tuesday Blitz February 28 Late 2023"]
[White "Bongo Akanga Ndjila, Barthelemy"]
[Black "Gerbelli Neto, Eduardo"]
[WhiteFideId "10609431"]
[BlackFideId "2103281"]
[WhiteElo "1768"]
[BlackElo "2178"]
[Result "1-0"]
[Round "03"]
[TimeControl "180+2"]
[Date "2023.02.28"]
[WhiteClock "0:01:48"]
[BlackClock "0:00:23"]

1. d4 {[%clk 0:03:00]}  d5 {[%clk 0:02:53]} 2. c4 {[%clk 0:02:59]}  c6 {[%clk 0:02:48]} 3. Qc2 {[%clk 0:02:59]}  Nf6 {[%clk 0:02:44]} 4. e3 {[%clk 0:02:59]}  e6 {[%clk 0:02:41]} 5. Nf3 {[%clk 0:02:59]}  Nbd7 {[%clk 0:02:37]} 6. Nc3 {[%clk 0:02:57]}  Bd6 {[%clk 0:02:34]} 7. c5 {[%clk 0:02:55]}  Bc7 {[%clk 0:02:33]} 8. b4 {[%clk 0:02:55]}  O-O {[%clk 0:02:29]} 9. Bb2 {[%clk 0:02:55]}  e5 {[%clk 0:02:29]} 10. Nxe5 {[%clk 0:02:54]}  Nxe5 {[%clk 0:02:30]} 11. dxe5 {[%clk 0:02:55]}  Bxe5 {[%clk 0:02:31]} 12. Bd3 {[%clk 0:02:53]}  a5 {[%clk 0:02:29]} 13. a3 {[%clk 0:02:52]}  axb4 {[%clk 0:02:19]} 14. axb4 {[%clk 0:02:52]}  Rxa1+ {[%clk 0:02:19]} 15. Bxa1 {[%clk 0:02:52]}  Qe7 {[%clk 0:02:15]} 16. h3 {[%clk 0:02:51]}  h6 {[%clk 0:02:10]} 17. O-O {[%clk 0:02:51]}  Bd7 {[%clk 0:01:47]} 18. Na4 {[%clk 0:02:50]}  Bxa1 {[%clk 0:01:44]} 19. Rxa1 {[%clk 0:02:49]}  Ra8 {[%clk 0:01:45]} 20. Qb2 {[%clk 0:02:45]}  Ne4 {[%clk 0:01:38]} 21. Nb6 {[%clk 0:02:44]}  Rxa1+ {[%clk 0:01:37]} 22. Qxa1 {[%clk 0:02:45]}  Bf5 {[%clk 0:01:29]} 23. g4 {[%clk 0:02:39]}  Bg6 {[%clk 0:01:26]} 24. Qa8+ {[%clk 0:02:37]}  Kh7 {[%clk 0:01:26]} 25. Qb8 {[%clk 0:02:24]}  h5 {[%clk 0:01:10]} 26. Qf4 {[%clk 0:02:21]}  Qh4 {[%clk 0:01:02]} 27. Kg2 {[%clk 0:02:17]}  hxg4 {[%clk 0:00:53]} 28. hxg4 {[%clk 0:02:17]}  Ng5 {[%clk 0:00:28]} 29. Bxg6+ {[%clk 0:02:16]}  fxg6 {[%clk 0:00:29]} 30. Qg3 {[%clk 0:02:10]}  Qxg3+ {[%clk 0:00:26]} 31. Kxg3 {[%clk 0:02:10]}  Ne4+ {[%clk 0:00:27]} 32. Kg2 {[%clk 0:02:06]}  Nc3 {[%clk 0:00:27]} 33. Nc8 {[%clk 0:02:02]}  Na2 {[%clk 0:00:26]} 34. Nd6 {[%clk 0:02:01]}  Nxb4 {[%clk 0:00:27]} 35. Nxb7 {[%clk 0:02:01]}  Nd3 {[%clk 0:00:27]} 36. Nd8 {[%clk 0:02:00]}  Nxc5 {[%clk 0:00:27]} 37. Nxc6 {[%clk 0:02:00]}  g5 {[%clk 0:00:26]} 38. Ne7 {[%clk 0:01:58]}  d4 {[%clk 0:00:23]} 39. exd4 {[%clk 0:01:57]}  Ne6 {[%clk 0:00:24]} 40. d5 {[%clk 0:01:57]}  Nf4+ {[%clk 0:00:24]} 41. Kf3 {[%clk 0:01:55]}  g6 {[%clk 0:00:25]} 42. d6 {[%clk 0:01:53]}  Kg7 {[%clk 0:00:24]} 43. Ke4 {[%clk 0:01:52]}  Kf6 {[%clk 0:00:24]} 44. Nd5+ {[%clk 0:01:51]}  Nxd5 {[%clk 0:00:23]} 45. Kxd5 {[%clk 0:01:51]}  Kf7 {[%clk 0:00:23]} 46. Kc6 {[%clk 0:01:48]} 1-0


[Site "https://www.chess.com"]

[Event "Titled Tuesday Blitz February 28 Late 2023"]
[White "Jarocka, Liwia"]
[Black "Ricaurte Lopez, Juan Carlos"]
[WhiteFideId "21807558"]
[BlackFideId "3600327"]
[WhiteElo "2013"]
[BlackElo "2209"]
[Result "0-1"]
[Round "03"]
[TimeControl "180+2"]
[Date "2023.02.28"]
[WhiteClock "0:01:43"]
[BlackClock "0:01:37"]

1. d4 {[%clk 0:03:00]}  d5 {[%clk 0:02:58]} 2. c4 {[%clk 0:02:59]}  e6 {[%clk 0:02:55]} 3. Nc3 {[%clk 0:02:59]}  c5 {[%clk 0:02:54]} 4. cxd5 {[%clk 0:02:59]}  cxd4 {[%clk 0:02:50]} 5. Qxd4 {[%clk 0:02:58]}  Nc6 {[%clk 0:02:50]} 6. Qa4 {[%clk 0:02:55]}  exd5 {[%clk 0:02:49]} 7. Bg5 {[%clk 0:02:53]}  Qxg5 {[%clk 0:02:37]} 8. Nf3 {[%clk 0:02:50]}  Qf5 {[%clk 0:02:23]} 9. e3 {[%clk 0:02:49]}  Bb4 {[%clk 0:02:18]} 10. Bb5 {[%clk 0:02:47]}  Bxc3+ {[%clk 0:02:17]} 11. bxc3 {[%clk 0:02:47]}  Ne7 {[%clk 0:02:17]} 12. O-O {[%clk 0:02:40]}  O-O {[%clk 0:02:17]} 13. Rfd1 {[%clk 0:02:36]}  a6 {[%clk 0:02:15]} 14. Bxc6 {[%clk 0:02:35]}  bxc6 {[%clk 0:02:13]} 15. Qa3 {[%clk 0:02:33]}  Re8 {[%clk 0:02:10]} 16. Nd4 {[%clk 0:02:31]}  Qf6 {[%clk 0:02:07]} 17. Rac1 {[%clk 0:02:29]}  Bg4 {[%clk 0:02:01]} 18. Re1 {[%clk 0:02:27]}  Nf5 {[%clk 0:01:55]} 19. Nb3 {[%clk 0:02:23]}  Nd6 {[%clk 0:01:54]} 20. Qa4 {[%clk 0:02:17]}  Nc4 {[%clk 0:01:52]} 21. h3 {[%clk 0:02:12]}  Bf5 {[%clk 0:01:42]} 22. Nd4 {[%clk 0:02:10]}  c5 {[%clk 0:01:39]} 23. Nf3 {[%clk 0:01:43]}  Nb2 {[%clk 0:01:37]} 0-1


[Site "https://www.chess.com"]